bitfinex/quotes_ETHUSD_20251128
["timestamp","ask_amount","ask_price","bid_price","bid_amount"]
[1764349657417,0.1,3033.2,3033.1,3.2969569]
[1764349657620,0.5734,3033.2,3033.1,3.2969569]
[1764349657915,1.0469,3033.2,3033.1,3.2969569]
[1764349658317,1.0469,3033.2,3032.7,3.50835359]
[1764349658318,0.1,3032.7,3032.6,6.82998443]
[1764349658489,0.1,3032.7,3032.6,12.05026033]
[1764349658989,0.1,3032.7,3032.6,11.32466622]
[1764349659202,0.1,3032.7,3032.6,12.05026033]
[1764349665220,0.1,3032.7,3032.6,12.17026033]
[1764349665425,0.1,3032.9,3032.6,18.76526131]
[1764349665623,0.1,3032.9,3032.7,1.87662613]
[1764349666427,0.1,3032.9,3032.8,3.29728303]
[1764349666910,0.1,3032.6,3032.5,3.29858241]
[1764349667114,0.5734,3032.6,3032.5,3.29858241]
[1764349667420,0.5734,3032.6,3032.5,7.15858241]
[1764349667421,1.0469,3032.6,3032.5,7.15858241]
[1764349667995,0.5734,3032.6,3032.5,7.15858241]
[1764349668826,1.0469,3032.6,3032.5,7.15858241]
[1764349669025,0.5734,3032.6,3032.5,3.29858241]
[1764349669323,0.5734,3032.6,3032.5,3.3315585]
[1764349669908,0.4734,3032.6,3032.5,3.3315585]
[1764349670204,0.1,3032.6,3032.5,3.3315585]
[1764349670722,0.1,3032.7,3032.5,6.62916773]
[1764349670929,0.1,3032.6,3032.5,3.3315585]
[1764349671555,0.5734,3032.6,3032.5,3.3315585]
[1764349671734,1.0469,3032.6,3032.5,3.29858241]
[1764349672440,1.0469,3032.6,3032.5,0.001]
[1764349674433,0.5734,3032.6,3032.5,3.33158532]
[1764349674735,1.0469,3032.6,3032.5,0.001]
[1764349674898,1.0469,3032.6,3032.5,3.29860923]
[1764349675745,1.37758062,3032.6,3032.5,0.001]
[1764349675901,1.68397314,3032.6,3032.5,0.001]
[1764349676104,1.85237045,3032.6,3032.5,0.001]
[1764349677446,0.87979252,3032.6,3032.5,0.001]
[1764349677746,1.35329252,3032.6,3032.5,0.001]
[1764349679415,4.65079301,3032.6,3032.5,0.001]
[1764349679614,1.68397314,3032.6,3032.5,0.001]
[1764349680737,4.98147363,3032.6,3032.5,0.001]
[1764349680941,5.84067821,3032.6,3032.5,0.001]
[1764349681634,2.54317772,3032.6,3032.5,0.001]
[1764349681804,5.84067821,3032.6,3032.5,0.001]
[1764349682005,6.97177632,3032.6,3032.5,0.001]
[1764349682203,7.07177632,3032.6,3032.5,0.001]
[1764349682609,6.24618221,3032.6,3032.5,0.001]
[1764349683019,6.34618221,3032.6,3032.5,0.001]
[1764349683810,6.55718221,3032.6,3032.5,0.001]
[1764349685446,2.4234971,3032.6,3032.5,0.001]
[1764349685743,4.86201089,3032.6,3032.5,0.001]
[1764349686143,1.3535104,3032.6,3032.5,0.001]
[1764349686350,1.5645104,3032.6,3032.5,0.001]
[1764349687038,0.7800104,3032.6,3032.5,0.001]
[1764349687241,0.4066104,3032.6,3032.5,0.001]
[1764349688444,0.8993104,3032.6,3032.5,0.001]
[1764349689416,1.3779104,3032.6,3032.5,0.001]
[1764349690843,1.70859102,3032.6,3032.5,0.001]
[1764349691215,1.90055012,3032.6,3032.5,0.001]
[1764349692437,5.19805061,3032.6,3032.5,0.001]
[1764349692944,1.42195012,3032.6,3032.5,0.001]
[1764349693148,2.11155012,3032.6,3032.5,0.001]
[1764349693356,1.44099102,3032.6,3032.5,0.001]
[1764349694723,0.6176104,3032.6,3032.5,0.001]
[1764349695245,0.7685104,3032.6,3032.5,0.001]
[1764349695446,1.41019102,3032.6,3032.5,0.001]
[1764349696144,1.89559102,3032.6,3032.5,0.001]
[1764349696643,1.41019102,3032.6,3032.5,0.001]
[1764349697049,1.89559102,3032.6,3032.5,0.001]
[1764349697256,1.1690695,3032.6,3032.5,0.001]
[1764349697462,1.0795104,3032.6,3032.5,0.001]
[1764349697958,1.5649104,3032.6,3032.5,0.001]
[1764349698556,1.89559102,3032.6,3032.5,0.001]
[1764349699966,1.5649104,3032.6,3032.5,0.001]
[1764349701221,1.89559102,3032.6,3032.5,0.001]
[1764349701422,2.08515012,3032.6,3032.5,0.001]
[1764349702160,1.89559102,3032.6,3032.5,0.001]
[1764349702530,5.19309151,3032.6,3032.5,0.001]
[1764349704033,1.89559102,3032.6,3032.5,0.001]
[1764349704434,5.19309151,3032.6,3032.5,0.001]
[1764349704849,1.89559102,3032.6,3032.5,0.001]
[1764349705022,5.19309151,3032.6,3032.5,0.001]
[1764349705222,5.81240066,3032.6,3032.5,0.001]
[1764349706257,5.38172004,3032.6,3032.5,0.001]
[1764349706624,5.81240066,3032.6,3032.5,0.001]
[1764349706827,6.21790466,3032.6,3032.5,0.001]
[1764349707248,6.61281815,3032.6,3032.5,0.001]
[1764349707449,27.25468577,3032.6,3032.5,0.001]
[1764349707668,24.28344577,3032.6,3032.5,0.001]
[1764349708328,26.28453577,3032.6,3032.5,0.001]
[1764349709380,26.40967711,3032.5,3032.4,0.001]
[1764349709579,15.90367573,3032.3,3032.2,0.001]
[1764349709881,13.46153413,3032.3,3032.2,0.001]
[1764349710180,13.94693413,3032.3,3032.2,0.001]
[1764349710326,0.405504,3032.0,3030.7,0.001]
[1764349710529,14.04003073,3031.9,3030.7,0.001]
[1764349710834,12.67273213,3031.9,3030.7,0.001]
[1764349711584,14.56862013,3031.9,3030.7,0.001]
[1764349712460,9.03918594,3031.9,3030.7,0.001]
[1764349712775,9.44468994,3031.9,3030.7,0.001]
[1764349712983,10.33425451,3031.9,3030.7,0.001]
[1764349713388,10.73975851,3031.9,3030.7,0.001]
[1764349713688,17.84943351,3031.9,3030.7,0.001]
[1764349714600,18.19483251,3031.9,3030.7,0.001]
[1764349715088,18.19483251,3031.9,3030.7,0.121]
[1764349715089,17.76415189,3031.9,3030.7,0.121]
[1764349715292,14.17092051,3031.9,3030.7,0.121]
[1764349715481,11.73693351,3031.9,3030.7,0.121]
[1764349715791,11.33725351,3031.9,3030.7,0.121]
[1764349716582,12.40296751,3031.9,3030.8,3.29945888]
[1764349716753,10.28816051,3031.9,3030.8,3.29945888]
[1764349717153,10.28816051,3031.9,3030.7,3.42054692]
[1764349717154,10.28816051,3031.9,3030.7,3.30053395]
[1764349717564,15.05969551,3031.9,3030.7,3.30053395]
[1764349717773,11.23189151,3031.9,3030.7,6.6001017]
[1764349717951,10.95082251,3031.9,3030.7,6.6001017]
[1764349718155,10.95082251,3031.9,3030.7,3.30055154]
[1764349718459,32.40273951,3031.9,3030.7,0.001]
[1764349718673,0.405504,3031.8,3030.4,6.57592841]
[1764349718868,0.1,3030.6,3030.5,0.66959284]
[1764349719071,0.311,3030.6,3030.5,0.66959284]
[1764349719275,0.311,3030.6,3030.5,0.90959284]
[1764349720072,0.311,3030.6,3030.5,4.08937835]
[1764349720275,0.311,3030.6,3030.5,4.20937835]
[1764349720487,0.311,3030.6,3030.5,4.08937835]
[1764349720675,0.6669,3030.6,3030.2,0.001]
[1764349720875,0.1,3030.3,3030.2,3.33411332]
[1764349721298,0.1,3030.3,3030.2,3.45411332]
[1764349721700,0.1,3030.3,3030.2,3.57411332]
[1764349722006,0.1,3030.4,3030.2,7.57375895]
[1764349722307,0.1,3030.4,3030.3,4.1]
[1764349723105,0.211,3030.5,3030.3,4.1]
[1764349723409,0.311,3030.5,3030.4,0.12]
[1764349724081,0.311,3030.5,3030.4,3.5398944]
[1764349724478,0.311,3030.5,3030.4,8.67120713]
[1764349724682,0.311,3030.5,3030.4,8.63820819]
[1764349724985,0.1,3030.5,3030.4,10.15674279]
[1764349725986,0.99162244,3031.6,3030.4,8.51820819]
[1764349725987,0.211,3030.8,3030.4,8.51820819]
[1764349726317,0.1,3030.5,3030.4,3.2998944]
[1764349726625,0.1,3030.5,3030.4,3.33289334]
[1764349726793,0.1,3030.5,3030.4,3.45289334]
[1764349727190,0.1,3030.5,3030.4,3.57289334]
[1764349727511,0.30575872,3030.6,3030.4,13.11444428]
[1764349727512,0.1,3030.6,3030.4,13.11444428]
[1764349727815,0.1,3030.6,3030.5,0.24]
[1764349727989,0.1,3030.6,3030.5,0.12]
[1764349728195,0.1,3030.6,3030.5,7.27978551]
[1764349729615,0.1,3030.6,3030.5,3.98]
[1764349729988,0.1,3030.6,3030.5,7.27978551]
[1764349730317,0.40592581,3030.6,3030.5,7.27978551]
[1764349730516,0.1,3030.6,3030.5,7.27978551]
[1764349730685,0.86182581,3030.6,3030.5,3.86]
[1764349731523,0.40592581,3030.6,3030.5,7.15978551]
[1764349731697,0.40592581,3030.6,3030.5,7.27978551]
[1764349732216,0.40592581,3030.6,3030.5,3.98]
[1764349732417,0.86182581,3030.6,3030.5,3.86]
[1764349734094,1.21272581,3030.6,3030.4,0.001]
[1764349734283,0.86182581,3030.5,3030.4,0.001]
[1764349734483,1.64340643,3030.5,3030.4,0.001]
[1764349734853,1.21272581,3030.5,3030.4,0.001]
[1764349735128,7.09677243,3030.5,3030.4,0.001]
[1764349735339,7.82236654,3030.5,3030.4,0.001]
[1764349735617,8.8529378,3030.5,3030.4,0.001]
[1764349735987,3.9050758,3030.5,3030.4,0.001]
[1764349736185,7.20486131,3030.5,3030.4,0.001]
[1764349736386,9.10868131,3030.5,3030.4,0.001]
[1764349736584,9.20868131,3030.5,3030.4,0.001]
[1764349737188,14.66681431,3030.5,3030.4,0.001]
[1764349737856,13.45621931,3030.5,3030.4,0.001]
[1764349738151,12.18757331,3030.5,3030.4,0.001]
[1764349738295,9.81168831,3030.5,3030.4,0.001]
[1764349738698,7.10486131,3030.5,3030.4,0.001]
[1764349738894,9.81168831,3030.5,3030.4,0.001]
[1764349739213,7.10486131,3030.5,3030.4,0.001]
[1764349741245,2.61799118,3030.5,3030.4,0.001]
[1764349741415,1.13151992,3030.5,3030.4,0.121]
[1764349741744,2.03831992,3030.5,3030.4,0.001]
[1764349741949,20.85044205,3030.5,3030.4,0.001]
[1764349742123,16.84185405,3030.5,3030.4,0.001]
[1764349742324,15.17115105,3030.5,3030.4,0.001]
[1764349742950,10.81275105,3030.5,3030.4,0.001]
[1764349743123,12.86175105,3030.5,3030.4,0.001]
[1764349744143,17.39250705,3030.5,3030.4,0.001]
[1764349745144,17.05149205,3030.5,3030.4,0.001]
[1764349745548,17.18375646,3030.5,3030.4,0.001]
[1764349746150,17.07536646,3030.5,3030.4,0.001]
[1764349747154,24.53516546,3030.5,3030.4,0.001]
[1764349747355,18.73060846,3030.5,3030.4,0.001]
[1764349748222,22.89432346,3030.5,3030.4,0.001]
[1764349749229,22.62198946,3030.5,3030.4,0.001]
[1764349750258,23.19886546,3030.5,3030.4,0.001]
[1764349751325,29.31620546,3030.5,3030.4,0.001]
[1764349751525,28.87184263,3030.5,3030.4,0.001]
[1764349751738,5.13577873,3030.3,3030.2,0.001]
[1764349751940,6.63300454,3030.3,3030.2,0.001]
[1764349752162,36.63300454,3030.3,3030.2,0.001]
[1764349753161,39.93300784,3030.3,3030.2,0.001]
[1764349753731,14.92551084,3030.3,3030.2,0.001]
[1764349753930,12.51212384,3030.3,3030.2,0.001]
[1764349754354,35.02999884,3030.3,3030.2,0.001]
[1764349755139,35.03071281,3030.3,3030.2,0.001]
[1764349755433,37.05565881,3030.3,3030.2,0.001]
[1764349755641,4.19114308,3030.3,3030.2,0.001]
[1764349755964,8.3635377,3030.3,3030.2,0.001]
[1764349756159,10.10359481,3030.3,3030.2,0.001]
[1764349756339,12.86689881,3030.3,3030.2,0.001]
[1764349756538,8.52426581,3030.3,3030.2,0.001]
[1764349756742,8.56925081,3030.3,3030.2,0.001]
[1764349757045,9.7693925,3030.3,3030.2,0.001]
[1764349757444,15.8041345,3030.3,3030.2,0.001]
[1764349757643,13.6815785,3030.3,3030.2,0.001]
[1764349757961,12.7416825,3030.3,3030.2,0.001]
[1764349758266,5.84337888,3030.3,3030.2,0.001]
[1764349758566,8.91029888,3030.3,3030.2,0.001]
[1764349759062,8.69929888,3030.3,3030.2,0.001]
[1764349759250,8.91029888,3030.3,3030.2,0.001]
[1764349759962,6.32567888,3030.3,3030.2,0.001]
[1764349760366,10.05992188,3030.3,3030.2,0.001]
[1764349760533,6.32567888,3030.3,3030.2,0.001]
[1764349761960,10.05992188,3030.3,3030.2,0.001]
[1764349762374,2.54337558,3030.3,3030.2,0.001]
[1764349762546,2.54337558,3030.3,3030.2,0.121]
[1764349762547,0.40663978,3030.3,3030.2,0.121]
[1764349762861,0.40663978,3030.3,3030.2,0.241]
[1764349763066,0.61763978,3030.3,3030.2,0.241]
[1764349763369,0.30663978,3030.3,3030.2,0.241]
[1764349763539,0.30663978,3030.3,3030.2,3.5411122]
[1764349764048,0.40663978,3030.3,3030.2,3.5411122]
[1764349764249,0.30663978,3030.3,3030.2,4.2254449]
[1764349765946,0.30043978,3030.3,3030.2,4.2254449]
[1764349766974,0.30043978,3030.3,3030.2,4.95103901]
[1764349767275,0.002,3030.6,3030.2,11.55126341]
[1764349767477,0.002,3030.6,3030.5,6.7523787]
[1764349767779,0.002,3030.6,3030.5,7.55961657]
[1764349768476,0.002,3030.6,3030.5,11.41961657]
[1764349769472,0.002,3030.6,3030.5,14.71940208]
[1764349770275,0.002,3030.6,3030.5,7.39978551]
[1764349771682,0.102,3030.6,3030.5,3.98]
[1764349772093,0.102,3030.6,3030.5,7.27978551]
[1764349772574,0.002,3030.6,3030.5,7.27978551]
[1764349772775,0.002,3030.6,3030.5,0.12]
[1764349773078,0.002,3030.6,3030.5,3.88177405]
[1764349773279,0.002,3030.6,3030.5,10.51415275]
[1764349773983,0.002,3030.6,3030.5,3.88177405]
[1764349774550,0.002,3030.6,3030.5,9.01318808]
[1764349774883,0.002,3030.6,3030.5,8.98019023]
[1764349778051,0.002,3030.6,3030.5,13.56578434]
[1764349778252,0.002,3031.0,3030.6,1.13109811]
[1764349778488,0.002,3031.9,3031.0,1.13109811]
[1764349778663,0.002,3031.9,3031.8,0.12]
[1764349779446,0.002,3031.9,3031.8,8.63678678]
[1764349779650,0.002,3031.9,3031.8,4.26396471]
[1764349779850,0.002,3031.9,3031.8,5.41005082]
[1764349780283,0.002,3031.9,3031.3,0.211]
[1764349780455,0.7711,3031.9,3031.4,6.59761166]
[1764349780779,0.002,3031.9,3031.8,0.12]
[1764349781693,0.002,3031.9,3031.8,3.5383706]
[1764349781853,0.002,3031.9,3031.8,4.22205551]
[1764349782984,0.002,3031.9,3031.8,4.10205551]
[1764349783497,0.002,3031.9,3031.8,4.22205551]
[1764349783998,0.002,3031.9,3031.8,4.10205551]
[1764349784489,1.2603,3031.9,3031.0,6.92945511]
[1764349784686,0.2977,3031.9,3031.1,0.03299132]
[1764349784879,0.102,3031.9,3031.8,0.12]
[1764349785279,0.102,3031.9,3031.3,0.15298914]
[1764349785676,0.102,3031.9,3031.4,6.59761166]
[1764349785882,0.102,3031.9,3031.4,7.63555447]
[1764349786181,0.102,3031.9,3031.4,7.60256642]
[1764349786382,0.40737178,3031.9,3031.4,7.60256642]
[1764349786580,0.102,3031.9,3031.5,0.03298697]
[1764349786966,0.40737178,3031.9,3031.5,0.03298697]
[1764349787179,0.102,3031.9,3031.5,0.03298697]
[1764349787580,0.60307178,3031.9,3031.6,3.2985882]
[1764349787766,0.7869,3031.9,3031.6,3.2985882]
[1764349788096,0.2977,3031.9,3031.6,6.5971764]
[1764349789203,0.30494502,3031.8,3031.6,6.5971764]
[1764349789393,0.2977,3031.9,3031.6,6.5971764]
[1764349789562,0.30496908,3031.8,3031.6,6.5971764]
[1764349789762,0.2977,3031.9,3031.6,6.5971764]
[1764349789961,0.30496623,3031.8,3031.6,6.5971764]
[1764349790165,0.102,3031.9,3031.6,6.5971764]
[1764349790366,0.30500922,3031.8,3031.6,6.5971764]
[1764349790566,0.002,3031.9,3031.8,0.12]
[1764349791166,0.30716161,3031.9,3031.8,0.12]
[1764349791797,0.30716161,3031.9,3031.8,3.4183706]
[1764349791971,0.002,3031.9,3031.8,3.5713543]
[1764349792169,0.30729439,3031.9,3031.8,3.5713543]
[1764349792482,0.002,3031.9,3031.8,6.00564557]
[1764349792669,0.002,3031.9,3031.8,6.33164557]
[1764349793196,0.002,3031.9,3031.8,6.00564557]
[1764349793574,0.002,3031.9,3031.8,5.97266187]
[1764349795005,0.002,3031.9,3031.8,6.00564557]
[1764349796415,0.002,3031.9,3031.8,5.27014157]
[1764349796624,0.002,3031.9,3031.8,5.60014157]
[1764349797484,0.002,3031.9,3031.8,5.35715787]
[1764349797686,0.002,3031.9,3031.8,5.39014157]
[1764349799424,0.002,3031.9,3031.8,9.09715787]
[1764349800525,0.002,3031.9,3031.8,8.97715787]
[1764349801020,1.46598448,3031.9,3031.8,3.2983706]
[1764349801219,1.46598448,3031.9,3031.3,0.001]
[1764349801220,1.46598448,3031.9,3031.3,0.93659411]
[1764349801420,0.30568448,3031.8,3031.5,0.72559411]
[1764349801592,0.30568448,3031.7,3031.5,0.72559411]
[1764349801793,0.30568448,3031.6,3031.5,1.80889527]
[1764349801992,0.30568448,3031.6,3031.5,4.02429112]
[1764349802195,0.30568448,3031.6,3031.5,4.17727809]
[1764349802827,0.30568448,3031.6,3031.5,4.29727809]
[1764349803124,0.30568448,3031.6,3031.5,4.17727809]
[1764349803422,0.30568448,3031.6,3031.5,4.29727809]
[1764349803623,0.002,3031.9,3031.6,0.405504]
[1764349803824,0.002,3032.3,3032.2,7.35099555]
[1764349804001,0.002,3032.3,3032.2,10.97893104]
[1764349804201,0.002,3033.4,3032.3,0.405504]
[1764349804441,0.002,3033.4,3032.5,0.12]
[1764349804847,0.4892,3033.1,3032.5,0.12]
[1764349804998,0.4686,3033.4,3032.5,0.12]
[1764349805198,0.4686,3033.4,3032.5,0.24]
[1764349805626,0.4666,3033.1,3032.5,0.12]
[1764349805814,0.4666,3033.3,3032.5,0.12]
[1764349806027,0.4666,3033.3,3032.5,4.14320334]
[1764349806407,0.002,3033.4,3032.5,4.26320334]
[1764349806622,0.002,3033.4,3032.5,5.25989819]
[1764349806928,0.4686,3033.4,3032.5,5.25989819]
[1764349807133,0.4686,3033.4,3032.5,5.13989819]
[1764349807332,0.4686,3033.4,3032.5,5.17287428]
[1764349807843,0.1963,3032.9,3032.5,5.05287428]
[1764349808160,0.1963,3032.9,3032.5,3.33058532]
[1764349808435,0.002,3033.4,3032.5,3.57058532]
[1764349809019,0.002,3033.4,3032.5,4.58168343]
[1764349809202,0.002,3033.4,3032.5,4.87870734]
[1764349809629,0.002,3033.4,3032.5,4.91168343]
[1764349809934,0.002,3033.4,3032.5,5.73262323]
[1764349810309,0.4666,3033.2,3032.5,5.17414314]
[1764349811033,0.002,3033.4,3032.5,12.35802467]
[1764349811231,0.002,3033.4,3032.5,12.32504858]
[1764349811633,0.4686,3033.4,3032.5,11.79954458]
[1764349812136,0.4686,3033.4,3032.5,5.17414314]
[1764349812314,0.002,3033.4,3032.5,5.20711923]
[1764349812517,0.4666,3033.2,3032.5,5.20711923]
[1764349812726,0.002,3033.4,3032.5,5.32711923]
[1764349813100,0.002,3033.4,3032.5,11.95252067]
[1764349813330,0.002,3033.4,3032.5,12.32504858]
[1764349814111,0.002,3033.4,3032.6,1.13109811]
[1764349814314,0.002,3033.4,3033.3,0.12]
[1764349814512,0.002,3033.4,3033.2,0.21]
[1764349815517,0.30670024,3033.3,3033.2,0.21]
[1764349816008,0.30670024,3033.3,3033.2,0.33]
[1764349816437,0.30670024,3033.3,3033.2,4.35244232]
[1764349816606,0.30670024,3033.3,3033.2,5.15364766]
[1764349816806,0.30870024,3033.3,3033.2,5.15364766]
[1764349817206,0.002,3033.3,3033.2,5.27364766]
[1764349817837,0.002,3033.3,3033.2,5.15364766]
[1764349818241,0.002,3033.3,3033.2,5.27364766]
[1764349820349,0.002,3033.3,3033.2,5.15364766]
[1764349820754,0.002,3033.3,3033.2,5.03364766]
[1764349820961,1.27146676,3033.3,3033.2,4.02244232]
[1764349821114,1.27146676,3033.3,3033.2,3.29684821]
[1764349821443,1.27146676,3033.3,3032.8,3.29728303]
[1764349821742,1.26946676,3033.2,3032.8,3.29728303]
[1764349821964,1.26946676,3033.2,3032.4,3.29764731]
[1764349821965,0.6554,3032.9,3032.4,6.59543594]
[1764349822165,0.4727,3032.5,3032.4,3.29771797]
[1764349822471,0.77926676,3032.5,3032.4,3.29771797]
[1764349822646,1.26946676,3032.5,3032.3,0.001]
[1764349822972,1.26946676,3032.4,3032.3,0.001]
[1764349823971,0.30656676,3032.4,3032.3,0.8016871]
[1764349824168,0.1827,3032.9,3032.3,0.83466536]
[1764349824475,0.4902,3032.7,3032.3,0.03397826]
[1764349824647,0.30620557,3032.6,3032.4,6.59543594]
[1764349824852,0.4902,3032.7,3032.5,0.03297609]
[1764349825063,0.30615156,3032.6,3032.5,0.03297609]
[1764349825843,0.77885156,3032.6,3032.5,0.03297609]
[1764349826238,0.30615156,3032.6,3032.5,0.03297609]
[1764349826439,0.77885156,3032.6,3032.5,0.03297609]
[1764349826758,1.26905156,3032.6,3032.5,0.03297609]
[1764349826966,1.26905156,3032.6,3032.5,3.29760923]
[1764349827168,1.26905156,3032.6,3032.4,0.03297717]
[1764349827383,1.26905156,3032.5,3032.4,0.03297717]
[1764349828854,0.9629,3032.5,3032.4,3.33069514]
[1764349829054,1.26907703,3032.5,3032.4,3.33069514]
[1764349829568,1.26907703,3032.5,3032.4,3.29771797]
[1764349829997,1.26907703,3032.5,3032.4,3.33069514]
[1764349830790,1.26907703,3032.5,3032.4,3.29771797]
[1764349831000,1.26907703,3032.5,3032.3,0.001]
[1764349831306,1.26901012,3032.4,3032.3,0.001]
[1764349831458,1.36901012,3032.4,3032.3,0.001]
[1764349833366,1.83566877,3032.4,3032.3,0.001]
[1764349833662,1.36901012,3032.4,3032.3,0.001]
[1764349835364,1.36841756,3032.4,3032.3,0.001]
[1764349835772,1.22921756,3032.4,3032.3,0.001]
[1764349837366,1.43921756,3032.4,3032.3,0.001]
[1764349838489,1.45281756,3032.4,3032.3,0.001]
[1764349839298,0.451,3032.7,3032.3,0.001]
[1764349840107,0.451,3032.7,3032.3,0.03397826]
[1764349840410,0.451,3032.7,3032.3,1.4291532]
[1764349841328,0.451,3032.7,3032.4,6.59543594]
[1764349842723,0.1901,3032.9,3032.4,9.89315391]
[1764349843025,0.451,3032.8,3032.4,9.89315391]
[1764349845806,0.4863,3032.5,3032.4,3.29771797]
[1764349846009,0.451,3032.8,3032.4,10.76488482]
[1764349847118,0.4863,3032.5,3032.4,4.16944888]
[1764349847430,0.4863,3032.5,3032.4,3.29771797]
[1764349849107,0.9373,3032.5,3032.4,3.29771797]
[1764349850437,0.9373,3032.5,3032.3,6.59663093]
[1764349850736,0.4863,3032.4,3032.3,3.2988042]
[1764349851439,0.451,3032.5,3032.3,6.59663093]
[1764349851741,0.4863,3032.4,3032.3,3.2988042]
[1764349852444,0.451,3032.5,3032.3,6.59663093]
[1764349853208,0.002,3032.6,3032.3,0.001]
[1764349853407,0.4863,3032.4,3032.3,0.001]
[1764349853806,0.9373,3032.4,3032.3,0.001]
[1764349854353,0.4863,3032.4,3032.3,0.001]
[1764349854950,0.453,3032.6,3032.3,0.001]
[1764349855111,0.30657551,3032.5,3032.3,0.121]
[1764349855307,0.002,3032.6,3032.4,6.62841311]
[1764349855513,0.30658463,3032.5,3032.4,4.33541826]
[1764349855952,0.30658463,3032.5,3032.4,4.45541826]
[1764349856223,0.002,3032.6,3032.4,7.72015906]
[1764349856452,0.002,3032.6,3032.5,0.96559411]
[1764349857228,0.002,3032.6,3032.5,4.26320334]
[1764349857535,0.002,3032.6,3032.5,5.48262569]
[1764349859961,0.002,3032.6,3032.5,5.88812969]
[1764349860325,0.002,3032.6,3032.5,6.21412969]
[1764349860527,0.002,3032.9,3032.5,6.21412969]
[1764349860528,1e-08,3032.9,3032.8,0.525504]
[1764349860761,1e-08,3032.9,3032.8,0.33]
[1764349860971,1e-08,3032.9,3032.8,0.12]
[1764349861181,1e-08,3032.9,3032.8,0.36297283]
[1764349861327,1e-08,3032.9,3032.8,4.38584997]
[1764349861523,1.12540001,3032.9,3032.8,4.80320101]
[1764349861728,1e-08,3032.9,3032.8,4.95617384]
[1764349862026,1e-08,3032.9,3032.8,4.83617384]
[1764349862027,0.48630001,3032.9,3032.8,4.83617384]
[1764349862427,1e-08,3032.9,3032.8,5.07617384]
[1764349863457,1e-08,3032.9,3032.8,5.28617384]
[1764349863836,1e-08,3032.9,3032.8,5.69167784]
[1764349864037,1e-08,3032.9,3032.8,5.65870501]
[1764349864238,1e-08,3032.9,3032.8,5.69167784]
[1764349864546,1e-08,3032.9,3032.8,5.65870501]
[1764349865636,1e-08,3032.9,3032.8,5.13320101]
[1764349866344,1e-08,3032.9,3032.8,5.16617384]
[1764349867659,0.49250001,3032.9,3032.8,4.83617384]
[1764349867863,0.95000001,3032.9,3032.8,4.05584997]
[1764349868164,0.67340001,3032.9,3032.8,3.33025586]
[1764349868766,1.13090001,3032.9,3032.8,3.33025586]
[1764349871958,1.13090001,3032.9,3032.8,3.33125586]
[1764349872485,1.13090001,3032.9,3032.8,3.29828303]
[1764349873601,1e-08,3032.9,3032.8,4.80674171]
[1764349874064,1e-08,3032.9,3032.8,4.83971454]
[1764349874267,1e-08,3032.9,3032.8,4.02387714]
[1764349874268,1.13090001,3032.9,3032.8,4.02387714]
[1764349875078,1.5591204,3032.9,3032.8,0.001]
[1764349875354,1.5591204,3032.9,3032.8,3.29828303]
[1764349876089,1.5591204,3032.9,3032.8,0.001]
[1764349876668,3.0591204,3032.9,3032.8,0.001]
[1764349876870,3.36523244,3032.9,3032.8,0.001]
[1764349879890,3.59591306,3032.9,3032.8,0.001]
[1764349880192,11.73414138,3032.9,3032.8,0.001]
[1764349880368,0.405504,3032.8,3032.4,0.001]
[1764349880574,0.92178062,3032.5,3032.4,0.001]
[1764349880775,1.22820101,3032.5,3032.4,0.001]
[1764349880969,1.70750101,3032.5,3032.4,0.001]
[1764349881174,1.56857049,3032.5,3032.4,0.001]
[1764349884287,1.5676272,3032.5,3032.4,0.001]
[1764349886287,1.5676272,3032.5,3032.0,0.001]
[1764349886458,0.4911,3032.1,3031.8,0.03154918]
[1764349886658,0.4911,3031.9,3031.8,0.03154918]
[1764349886895,0.6851,3031.9,3031.7,6.5979588]
[1764349887074,0.4911,3031.8,3031.7,3.2994794]
[1764349887574,0.194,3031.9,3031.7,6.5979588]
[1764349887767,0.194,3031.9,3031.8,0.03154918]
[1764349888169,0.6851,3031.9,3031.8,0.03154918]
[1764349888686,0.6851,3031.9,3031.3,0.211]
[1764349888687,5.058958,3030.9,3030.3,0.001]
[1764349888891,0.1,3030.4,3030.3,0.001]
[1764349889061,1.0704,3030.4,3030.3,0.001]
[1764349889263,0.30515309,3030.4,3030.3,0.001]
[1764349889470,0.404,3031.0,3030.3,0.4557]
[1764349889690,0.194,3031.0,3030.4,0.03299894]
[1764349890264,0.194,3031.0,3030.3,0.4691]
[1764349890903,0.1,3030.8,3030.3,0.001]
[1764349891063,0.1,3030.8,3030.3,6.6010066]
[1764349891262,1.194804,3031.8,3030.7,0.4547]
[1764349891503,1.194804,3031.8,3030.8,0.03299458]
[1764349891504,0.1,3031.5,3030.8,0.03299458]
[1764349891900,0.5793,3031.5,3030.8,0.03299458]
[1764349892116,0.1,3031.2,3030.5,0.03299785]
[1764349892272,0.1,3030.8,3030.5,0.03299785]
[1764349892603,0.30436796,3031.4,3030.3,6.6010066]
[1764349892604,0.4911,3030.6,3030.3,6.6010066]
[1764349892811,0.1,3030.5,3030.3,6.6010066]
[1764349893363,0.1,3030.5,3030.4,0.48769894]
[1764349893697,0.1,3030.5,3030.4,0.03299894]
[1764349894101,0.1,3030.5,3030.4,0.48769894]
[1764349895601,0.1,3030.5,3030.4,3.2998944]
[1764349895778,0.1,3030.6,3030.4,7.0879888]
[1764349895981,0.1,3030.6,3030.5,0.03299785]
[1764349896181,0.1,3030.6,3030.5,0.52119785]
[1764349896381,0.1,3030.6,3030.5,0.03299785]
[1764349897703,0.5825,3030.6,3030.5,3.29978551]
[1764349898973,0.1,3030.6,3030.5,3.29978551]
[1764349899174,0.5825,3030.6,3030.5,3.29978551]